[Event "Stockholm Elo Challenge 2019"]
[Site "Stockholm"]
[Date "2019.06.02"]
[Round "7.3"]
[White "Willinger, Tim"]
[Black "Jansson, Gilbert"]
[Result "1-0"]
[ECO "D85"]
[WhiteElo "2073"]
[BlackElo "1892"]
[Annotator "NA"]
[PlyCount "83"]
[EventDate "2019.05.29"]
[EventType "swiss"]
[EventCountry "SWE"]
[SourceTitle "playchess.com"]
[Source "ChessBase"]
[SourceQuality "1"]
[TimeControl "40/5400+30:1800+30"]

1. d4 {[%emt 0:00:00]} Nf6 {[%emt 0:00:00]} 2. c4 {[%emt 0:00:00]} g6 {[%emt 0:00:00]} 3. Nc3 {[%emt 0:00:00]} d5 {[%emt 0:00:22]} 4. cxd5 {[%emt 0:00:00]} Nxd5 {[%emt 0:00:10]} 5. e4 {[%emt 0:00:00]} Nxc3 {[%emt 0:00:20]} 6. bxc3 {[%emt 0:00:00]} Bg7 {[%emt 0:00:24]} 7. Be3 {[%emt 0:00:00]} c5 {[%emt 0:00:23]} 8. Qd2 {[%emt 0:00:06]} O-O {[%emt 0:00:47]} 9. Nf3 {[%emt 0:00:44]} Qa5 {[%emt 0:01:27]} 10. Rc1 {[%emt 0:01:53]} e6 {[%emt 0:05:31]} 11. Bh6 {[%emt 0:08:18]} Nc6 {[%emt 0:01:46] D85: Exchange Grünfeld: Unusual White 7th moves and lines with 7 Nf3} 12. h4 {[%emt 0:03:19]} cxd4 {[%emt 0:00:37]} 13. Bxg7 {[%emt 0:00:23]} Kxg7 {[%emt 0:00:32]} 14. cxd4 {[%emt 0:00:09]} Qxd2+ {[%emt 0:01:02]} 15. Kxd2 {[%emt 0:00:09]} Rd8 {[%emt 0:02:03]} 16. Ke3 {[%emt 0:00:38]} Bd7 {[%emt 0:01:10] [#]} 17. Be2 $146 {[%emt 0:03:26]} ({Predecessor:} 17. g4 f5 18. h5 fxg4 19. h6+ {1-0 (88) Khismatullin,D (2667)-Gabrielian,A (2559) Irkutsk 2010}) 17... Rac8 {[%emt 0:02:05]} 18. h5 {[%emt 0:06:18]} h6 {[%emt 0:02:49]} 19. hxg6 {[%emt 0:07:03]} fxg6 {[%emt 0:00:34]} 20. Rb1 {[%emt 0:03:56]} Na5 {[%emt 0:04:44]} 21. Rhc1 {[%emt 0:00:53]} Ba4 {[%emt 0:02:35]} 22. Ne5 {[%emt 0:02:05]} Kf6 {[%emt 0:10:28] [#]} 23. f4 $1 {[%emt 0:06:14]} b6 $2 {[%emt 0:00:43]} (23... Be8 $16 24. g4 Ke7) 24. Ba6 {[%emt 0:01:24]} Rxc1 {[%emt 0:17:23]} 25. Rxc1 {[%emt 0:00:09]} Re8 {[%emt 0:00:35]} 26. Rc7 {[%emt 0:06:09]} Re7 {[%emt 0:00:11]} 27. Rxe7 {[%emt 0:00:54]} Kxe7 {[%emt 0:00:07]} 28. Nxg6+ {[%emt 0:00:19]} Kf6 {[%emt 0:00:20]} 29. Ne5 {[%emt 0:00:20]} Nc6 {[%emt 0:01:46]} 30. Nxc6 {[%emt 0:04:02]} Bxc6 {[%emt 0:00:08]} 31. Bd3 {[%emt 0:08:39]} b5 {[%emt 0:01:54]} 32. e5+ {[%emt 0:01:58]} Ke7 {[%emt 0:00:43]} 33. Be4 {[%emt 0:00:34]} Be8 {[%emt 0:00:32]} 34. d5 {[%emt 0:00:48]} exd5 {[%emt 0:01:30]} 35. Bxd5 {[%emt 0:00:09]} a5 {[%emt 0:00:36]} 36. f5 {[%emt 0:02:04]} b4 {[%emt 0:02:12]} 37. Kd4 {[%emt 0:01:21]} Bd7 {[%emt 0:01:23]} 38. f6+ {[%emt 0:00:41]} Kf8 {[%emt 0:00:07]} 39. e6 {[%emt 0:00:30]} Bc8 {[%emt 0:02:29]} 40. Ke5 {[%emt 0:00:56]} a4 {[%emt 0:00:34]} 41. e7+ $18 {[%emt 0:31:00]} Ke8 {[%emt 0:30:11]} 42. Kd6 {[%emt 0:00:16]} 1-0

[Event "Stockholm Elo Challenge 2019"]
[Site "Stockholm"]
[Date "2019.06.02"]
[Round "7.4"]
[White "Molin, Nils"]
[Black "Korning, Peter"]
[Result "0-1"]
[ECO "B06"]
[WhiteElo "1816"]
[BlackElo "1966"]
[Annotator "NA"]
[PlyCount "69"]
[EventDate "2019.05.29"]
[EventType "swiss"]
[EventCountry "SWE"]
[SourceTitle "playchess.com"]
[Source "ChessBase"]
[SourceQuality "1"]
[TimeControl "40/5400+30:1800+30"]

1. e4 {[%emt 0:02:07]} g6 {[%emt 0:00:00]} 2. Nf3 {[%emt 0:00:46]} Bg7 {[%emt 0:00:02]} 3. g3 {[%emt 0:00:11]} c6 {[%emt 0:02:55]} 4. Bg2 {[%emt 0:00:25]} d5 {[%emt 0:00:13]} 5. Qe2 {[%emt 0:06:14]} dxe4 {[%emt 0:01:37]} 6. Qxe4 {[%emt 0:00:45]} Nf6 {[%emt 0:00:49]} 7. Qh4 {[%emt 0:01:21]} h6 {[%emt 0:04:11]} 8. h3 {[%emt 0:02:26]} g5 {[%emt 0:04:39]} 9. Qa4 {[%emt 0:01:29]} Nbd7 {[%emt 0:03:08]} 10. d4 {[%emt 0:00:55]} Nb6 {[%emt 0:01:37]} 11. Qb4 {[%emt 0:01:23]} Be6 {[%emt 0:05:11]} 12. b3 {[%emt 0:02:44]} a5 {[%emt 0:06:51]} 13. Qd2 {[%emt 0:03:59]} a4 {[%emt 0:06:41]} 14. Bb2 {[%emt 0:02:32]} axb3 {[%emt 0:08:26]} 15. axb3 {[%emt 0:05:42]} Rxa1 {[%emt 0:02:21]} 16. Bxa1 {[%emt 0:05:01]} Qa8 {[%emt 0:07:15]} 17. Bb2 {[%emt 0:01:56]} Ne4 {[%emt 0:02:14]} 18. Qc1 {[%emt 0:03:39]} O-O {[%emt 0:05:21]} 19. O-O $1 {[%emt 0:05:39]} Qc8 {[%emt 0:00:51]} 20. Kh2 {[%emt 0:01:51]} Nd7 {[%emt 0:07:22]} 21. c4 {[%emt 0:03:11]} Qc7 {[%emt 0:01:31]} 22. Nbd2 {[%emt 0:03:11]} Nef6 {[%emt 0:01:15]} 23. Qc2 {[%emt 0:01:38]} Ra8 {[%emt 0:01:04]} 24. Ra1 {[%emt 0:00:27]} Rxa1 {[%emt 0:00:07]} 25. Bxa1 {[%emt 0:00:04]} Qa5 {[%emt 0:02:02]} 26. Bc3 {[%emt 0:01:42]} Qf5 {[%emt 0:01:00]} 27. Qxf5 {[%emt 0:10:07]} Bxf5 {[%emt 0:00:01]} 28. c5 {[%emt 0:00:49]} Nd5 {[%emt 0:00:46]} 29. Bb2 {[%emt 0:00:29] [#]} Nxc5 $1 {[%emt 0:00:45] Pin} 30. Ba3 {[%emt 0:01:33]} (30. Ne5 $142 Nd3 31. Nxd3 Bxd3 32. Nc4) 30... Ne6 {[%emt 0:03:05]} 31. Nc4 {[%emt 0:00:21]} Nxd4 {[%emt 0:02:59]} 32. Nxd4 {[%emt 0:00:48]} Bxd4 {[%emt 0:00:03]} 33. Na5 {[%emt 0:00:31]} Bxf2 $19 {[%emt 0:05:38]} 34. Bxd5 {[%emt 0:00:14]} cxd5 {[%emt 0:00:02]} 35. Bxe7 {[%emt 0:00:10]} 0-1

[Event "Stockholm Elo Challenge 2019"]
[Site "Stockholm"]
[Date "2019.06.02"]
[Round "7.5"]
[White "Sjodin, Bengt"]
[Black "Grahn, Vidar"]
[Result "1/2-1/2"]
[ECO "D00"]
[WhiteElo "1974"]
[BlackElo "1976"]
[Annotator "NA"]
[PlyCount "99"]
[EventDate "2019.05.29"]
[EventType "swiss"]
[EventCountry "SWE"]
[SourceTitle "playchess.com"]
[Source "ChessBase"]
[SourceQuality "1"]
[TimeControl "40/5400+30:1800+30"]

1. d4 {[%emt 0:00:49]} d5 {[%emt 0:00:00]} 2. Bf4 {[%emt 0:00:18]} Nf6 {[%emt 0:00:00]} 3. e3 {[%emt 0:00:58]} c5 {[%emt 0:00:06]} 4. Nf3 {[%emt 0:02:06]} Bg4 {[%emt 0:02:41]} 5. Bb5+ {[%emt 0:06:35]} Nc6 {[%emt 0:01:37]} 6. c3 {[%emt 0:03:17] D02: 1 d4 d5 2 Nf3 sidelines, including 2...Nf6 3 g3 and 2...Nf6 3 Bf4} e6 {[%emt 0:03:22]} 7. Nbd2 {[%emt 0:00:36]} Qa5 $146 {[%emt 0:07:51]} ({Predecessor:} 7... Qb6 8. Qa4 Nd7 9. O-O a6 10. Bd3 Be7 11. Rab1 Bh5 12. a3 Qd8 13. Rfe1 O-O 14. Qc2 Bg6 15. Bxg6 hxg6 {½-½ (65) Kamsky,G (2690)-Vallejo Pons,F (2674) Khanty-Mansiysk 2005}) 8. Qa4 {[%emt 0:01:23]} Qxa4 {[%emt 0:01:05]} 9. Bxa4 {[%emt 0:00:40]} Nd7 {[%emt 0:03:15]} 10. Ne5 {[%emt 0:06:23]} Ndxe5 {[%emt 0:01:08]} 11. Bxe5 {[%emt 0:00:09]} f6 {[%emt 0:01:58]} 12. Bf4 {[%emt 0:01:32]} cxd4 {[%emt 0:04:03]} 13. exd4 {[%emt 0:01:26]} Kf7 {[%emt 0:02:06]} 14. O-O {[%emt 0:03:40]} g5 {[%emt 0:02:25]} 15. Be3 {[%emt 0:01:36]} Bd6 {[%emt 0:01:46]} 16. f4 {[%emt 0:00:17]} h6 {[%emt 0:07:06]} 17. Bc2 {[%emt 0:03:34]} Ke7 {[%emt 0:04:37]} 18. Rae1 {[%emt 0:01:51]} Rag8 {[%emt 0:03:52]} 19. f5 {[%emt 0:03:41]} e5 {[%emt 0:04:00]} ({Black should try} 19... Kf7 $14) 20. Bb3 {[%emt 0:02:38]} exd4 {[%emt 0:14:37]} 21. Bxd4+ {[%emt 0:01:14]} ({But not} 21. cxd4 Bb4 $18) 21... Be5 {[%emt 0:01:07]} 22. Bxd5 {[%emt 0:00:23]} Nxd4 {[%emt 0:01:16]} 23. cxd4 {[%emt 0:00:48] Pin} Rd8 {[%emt 0:00:47]} 24. dxe5 {[%emt 0:12:06]} ({Weaker is} 24. Bxb7 Rxd4 25. Nb3 Rf4 $11) 24... Rxd5 {[%emt 0:00:40]} 25. exf6+ {[%emt 0:00:52]} Kxf6 {[%emt 0:01:54]} 26. Ne4+ {[%emt 0:02:42]} Kg7 {[%emt 0:00:44]} 27. f6+ $2 {[%emt 0:02:22]} ({Better is} 27. h3 $18 Bxf5 28. Nc3) 27... Kf7 {[%emt 0:01:18]} 28. h3 {[%emt 0:04:53]} Be6 {[%emt 0:01:36]} 29. Rf2 {[%emt 0:05:40]} Re8 $11 {[%emt 0:03:55]} 30. g4 {[%emt 0:04:39]} Rd4 {[%emt 0:04:29]} 31. Nc3 {[%emt 0:07:58]} Bd7 {[%emt 0:04:54]} 32. Rxe8 {[%emt 0:04:15]} Bxe8 {[%emt 0:00:55]} 33. Ne2 {[%emt 0:03:48]} Rd2 {[%emt 0:00:33]} 34. Ng3 {[%emt 0:01:05]} Rxf2 {[%emt 0:01:11]} 35. Kxf2 {[%emt 0:00:04]} Kxf6 {[%emt 0:00:27]} 36. Ke3 {[%emt 0:00:09]} Bg6 {[%emt 0:02:45]} 37. Kd4 {[%emt 0:00:59]} b6 {[%emt 0:03:08]} 38. a3 {[%emt 0:01:05]} Bf7 {[%emt 0:01:48]} 39. b4 {[%emt 0:00:36]} a6 {[%emt 0:02:34]} 40. Ne4+ {[%emt 0:02:54]} Ke6 {[%emt 0:00:43]} 41. Nc3 {[%emt 0:31:18]} Kd6 {[%emt 0:31:55]} 42. Na4 {[%emt 0:03:36]} b5 {[%emt 0:04:15]} 43. Nc5 {[%emt 0:00:50]} Bd5 {[%emt 0:00:00]} 44. Nxa6 {[%emt 0:00:00]} Bg2 {[%emt 0:00:00]} 45. Nc5 {[%emt 0:00:00]} Bxh3 {[%emt 0:00:00]} 46. Ne4+ {[%emt 0:00:00]} Ke6 {[%emt 0:00:00]} 47. Nf2 {[%emt 0:00:00]} Bf1 {[%emt 0:00:00]} 48. Ke3 {[%emt 0:00:00]} Bc4 {[%emt 0:00:00]} 49. Nh1 {[%emt 0:00:00]} Ke5 {[%emt 0:00:00]} 50. Nf2 {[%emt 0:00:00] Kd4+} 1/2-1/2

[Event "Stockholm Elo Challenge 2019"]
[Site "Stockholm"]
[Date "2019.06.02"]
[Round "7.6"]
[White "Tran, Alva Ling"]
[Black "Isaksson, Max"]
[Result "1-0"]
[ECO "C50"]
[WhiteElo "1616"]
[BlackElo "1572"]
[Annotator "NA"]
[PlyCount "90"]
[EventDate "2019.05.29"]
[EventType "swiss"]
[EventCountry "SWE"]
[SourceTitle "playchess.com"]
[Source "ChessBase"]
[SourceQuality "1"]
[TimeControl "40/5400+30:1800+30"]

1. e4 e5 2. Nf3 Nc6 3. Bc4 Nf6 4. d3 Bc5 5. Nc3 d6 6. h3 h6 7. Be3 Bb6 8. d4 exd4 9. Nxd4 O-O 10. O-O Nxe4 11. Nxe4 d5 12. Nxc6 bxc6 13. Bxb6 cxb6 14. Bd3 dxe4 15. Bxe4 Qf6 16. c3 Ba6 17. Re1 Rad8 18. Qa4 Bb5 19. Qxa7 c5 20. Rad1 Rxd1 21. Rxd1 Rd8 22. Rxd8+ Qxd8 23. Qa8 Qxa8 24. Bxa8 Kf8 25. f4 Ke7 26. Kf2 Kd6 27. Ke3 f5 28. h4 Bd7 29. b4 c4 30. Kd4 b5 31. Bd5 Be8 32. g3 Bh5 33. Bb7 Bd1 34. Bc8 Bc2 35. Ke3 Be4 36. Ba6 Bc6 37. Kd4 Bd7 38. Bb7 Kc7 39. Bd5 Kd6 40. Bg8 Bc6 41. Bh7 Bd7 42. Bg6 Bc8 43. Be8 Ba6 44. a3 Ke7 45. Bg6 Bc8 {Ke4} 1-0